[Event "XVII MetLife Najdorf Open 2017"]
[Site "Warsaw"]
[Date "2017.07.17"]
[Round "9"]
[White "Bus, Konrad"]
[Black "Lewicki, Miroslaw"]
[Result "0-1"]
[ECO "A66"]
[WhiteElo "2219"]
[BlackElo "2323"]
[Annotator "NA"]
[PlyCount "112"]
[EventDate "2017.??.??"]
[EventType "swiss"]
[EventCountry "POL"]
[SourceTitle "playchess.com"]
[Source "ChessBase"]
[SourceQuality "1"]
[TimeControl "40/5400+30:1800+30"]

1. d4 {[%emt 0:00:00]} Nf6 {[%emt 0:00:09]} 2. c4 {[%emt 0:00:00]} e6 {[%emt 0:00:06]} 3. Nc3 {[%emt 0:00:00]} c5 {[%emt 0:00:32]} 4. d5 {[%emt 0:00:56]} exd5 {[%emt 0:00:06]} 5. cxd5 {[%emt 0:00:03]} d6 {[%emt 0:00:07]} 6. e4 {[%emt 0:01:14]} g6 {[%emt 0:00:57]} 7. f4 {[%emt 0:03:17]} Bg7 {[%emt 0:01:15]} 8. e5 {[%emt 0:00:22]} dxe5 {[%emt 0:10:54]} 9. fxe5 {[%emt 0:00:20] A66: Modern Benoni: Mikenas Attack} Nh5 {[%emt 0:00:06]} (9... Nfd7 10. e6 fxe6 11. dxe6 Qe7 12. Be2 Nb6 13. Nf3 Bxe6 14. Bf4 Bc4 15. O-O Bxe2 16. Nxe2 O-O 17. Kh1 Qe6 {0-1 (30) Worek,J (2342)-Velicka,P (2432) Ostrava 2016}) 10. Nf3 {[%emt 0:06:18]} O-O {[%emt 0:00:30]} 11. Bg5 {[%emt 0:07:38]} f6 {[%emt 0:01:26]} 12. exf6 $146 {[%emt 0:00:41]} ({Predecessor:} 12. Be3 fxe5 13. Bxc5 Re8 14. Ne4 Bg4 15. d6 Nd7 16. Bc4+ Kh8 {1-0 (25) Planas Gene,J-Perez Prieto,G Palma de Mallorca 2003}) 12... Bxf6 {[%emt 0:01:58]} 13. Qd2 {[%emt 0:08:04]} Bxg5 {[%emt 0:04:36]} 14. Qxg5 {[%emt 0:03:38]} Re8+ {[%emt 0:02:16]} 15. Be2 {[%emt 0:01:50]} Qxg5 {[%emt 0:01:26]} 16. Nxg5 {[%emt 0:00:02]} Nf4 {[%emt 0:05:03]} 17. Kf2 {[%emt 0:07:21]} Nxe2 {[%emt 0:02:20]} 18. Nxe2 {[%emt 0:02:01]} Re5 {[%emt 0:01:35]} 19. Nf3 {[%emt 0:05:18]} Rxd5 {[%emt 0:00:08]} 20. Nc3 {[%emt 0:00:46]} Rf5 {[%emt 0:02:00]} 21. Rhe1 {[%emt 0:07:25]} Nc6 {[%emt 0:00:48]} 22. Rad1 {[%emt 0:00:48]} Rf8 {[%emt 0:01:55]} 23. Kg3 {[%emt 0:01:50]} Bf5 {[%emt 0:00:46]} 24. Nb5 {[%emt 0:01:51]} Rad8 {[%emt 0:03:48]} 25. Nd6 {[%emt 0:03:58]} Bc2 {[%emt 0:00:55]} 26. Rc1 {[%emt 0:02:27]} Rxd6 {[%emt 0:00:22]} 27. Rxc2 {[%emt 0:00:02]} b6 {[%emt 0:00:09]} 28. Rce2 {[%emt 0:01:20]} a5 {[%emt 0:05:15]} 29. Re6 {[%emt 0:02:19]} Rf6 {[%emt 0:00:36]} 30. Re8+ {[%emt 0:01:47]} Kg7 {[%emt 0:00:09]} 31. h4 {[%emt 0:01:24]} h6 {[%emt 0:01:00]} 32. Rc8 {[%emt 0:01:42]} Rf8 {[%emt 0:02:04]} 33. Rc7+ {[%emt 0:01:05]} Rf7 {[%emt 0:00:13]} 34. Rc8 $1 {[%emt 0:01:23]} Ne7 {[%emt 0:05:19]} 35. Rb8 {[%emt 0:01:21]} Nf5+ {[%emt 0:02:56]} 36. Kh3 {[%emt 0:03:53]} Re7 $11 {[%emt 0:00:40]} 37. Rxe7+ {[%emt 0:00:57]} Nxe7 {[%emt 0:00:02]} 38. Ne5 {[%emt 0:01:54]} h5 {[%emt 0:07:57]} 39. Rb7 {[%emt 0:05:01]} Kf8 {[%emt 0:01:32]} 40. Nd7+ {[%emt 0:00:00]} Ke8 {[%emt 0:00:09]} 41. Nxb6 {[%emt 0:11:51]} Nf5 {[%emt 0:00:31]} 42. Kh2 {[%emt 0:03:17]} Rd4 {[%emt 0:03:43]} 43. Ra7 {[%emt 0:07:29]} Rxh4+ {[%emt 0:01:27]} 44. Kg1 {[%emt 0:01:32]} Rb4 {[%emt 0:00:11]} 45. Nd5 {[%emt 0:00:28]} Rxb2 {[%emt 0:00:14]} 46. Rxa5 {[%emt 0:00:40]} Rc2 {[%emt 0:05:42]} 47. Nf4 {[%emt 0:04:52]} Kf7 {[%emt 0:00:24]} 48. Ra7+ {[%emt 0:01:47]} Kf6 {[%emt 0:00:07]} 49. Ra6+ {[%emt 0:00:09]} Kg5 {[%emt 0:00:32]} 50. Nh3+ {[%emt 0:01:29]} Kh4 {[%emt 0:04:28]} 51. Rxg6 {[%emt 0:02:49]} Rxa2 {[%emt 0:00:26]} 52. Kh2 {[%emt 0:05:32]} Ne3 {[%emt 0:00:45]} 53. Ng1 {[%emt 0:01:37]} Ng4+ {[%emt 0:01:01]} 54. Kh1 {[%emt 0:00:02]} Kg3 {[%emt 0:00:39]} 55. Nh3 {[%emt 0:01:14]} Rxg2 {[%emt 0:02:02]} 56. Nf4 {[%emt 0:00:48]} Rh2+ 0-1

[Event "XVII MetLife Najdorf Open 2017"]
[Site "Warsaw"]
[Date "2017.07.17"]
[Round "9"]
[White "Baltic, Fatih"]
[Black "Walter, Szymon"]
[Result "1/2-1/2"]
[ECO "B76"]
[WhiteElo "2210"]
[BlackElo "2220"]
[Annotator "NA"]
[PlyCount "29"]
[EventDate "2017.??.??"]
[EventType "swiss"]
[EventCountry "POL"]
[SourceTitle "playchess.com"]
[Source "ChessBase"]
[SourceQuality "1"]
[TimeControl "40/5400+30:1800+30"]

1. e4 {[%emt 0:00:01]} c5 {[%emt 0:00:08]} 2. Nf3 {[%emt 0:00:06]} d6 {[%emt 0:00:06]} 3. d4 {[%emt 0:00:04]} cxd4 {[%emt 0:00:04]} 4. Nxd4 {[%emt 0:00:06]} Nf6 {[%emt 0:00:06]} 5. Nc3 {[%emt 0:00:10]} g6 {[%emt 0:00:09]} 6. Be3 {[%emt 0:00:04]} Bg7 {[%emt 0:00:04]} 7. Qd2 {[%emt 0:00:05]} O-O {[%emt 0:00:05]} 8. f3 {[%emt 0:00:08]} Nc6 {[%emt 0:00:07]} 9. O-O-O {[%emt 0:00:04]} d5 {[%emt 0:00:06]} 10. exd5 {[%emt 0:00:04]} Nxd5 {[%emt 0:00:04]} 11. Nxc6 {[%emt 0:00:05]} bxc6 {[%emt 0:00:03]} 12. Bd4 {[%emt 0:00:06]} Bxd4 {[%emt 0:00:13]} 13. Qxd4 {[%emt 0:00:03]} Qb6 {[%emt 0:00:07]} 14. Na4 {[%emt 0:00:50]} Qc7 {[%emt 0:00:05]} 15. h4 {[%emt 0:01:23]} 1/2-1/2

[Event "XVII MetLife Najdorf Open 2017"]
[Site "Warsaw"]
[Date "2017.07.17"]
[Round "9"]
[White "Godzwon, Iwo"]
[Black "Baasansuren, Erdene"]
[Result "1-0"]
[ECO "B94"]
[WhiteElo "2205"]
[BlackElo "2128"]
[Annotator "NA"]
[PlyCount "95"]
[EventDate "2017.??.??"]
[EventType "swiss"]
[EventCountry "POL"]
[SourceTitle "playchess.com"]
[Source "ChessBase"]
[SourceQuality "1"]
[TimeControl "40/5400+30:1800+30"]

1. e4 c5 2. Nf3 d6 3. d4 cxd4 4. Nxd4 Nf6 5. Nc3 a6 6. Bg5 Nbd7 7. Bc4 Qb6 8. Bb3 e6 9. Qd2 Be7 10. O-O-O Nc5 11. Rhe1 h6 12. Bh4 O-O 13. Qe3 Qc7 14. g4 Nfxe4 15. Bxe7 {[%emt 0:17:09]} Nxc3 16. bxc3 Qxe7 17. Nf5 Qc7 18. Nxd6 Bd7 19. Qe5 Qa5 {[%emt 1:40:00]} 20. Kb1 Nxb3 21. cxb3 Qxe5 22. Rxe5 Bc6 23. Re3 Rfd8 24. Kc1 g5 25. Red3 Kg7 26. Nf5+ exf5 27. Rxd8 Rxd8 28. Rxd8 fxg4 29. c4 f5 30. Kd2 f4 31. Ke1 Bg2 32. Rd7+ Kg6 33. Rd6+ Kg7 34. b4 h5 35. b5 axb5 36. cxb5 h4 37. a4 h3 38. Rd3 Kf6 39. a5 Be4 40. Ra3 Ke5 41. a6 bxa6 42. bxa6 Kd6 43. a7 Ba8 44. Rb3 Kc7 45. Rb8 g3 46. fxg3 fxg3 47. Rxa8 gxh2 48. Rc8+ 1-0

[Event "XVII MetLife Najdorf Open 2017"]
[Site "Warsaw"]
[Date "2017.07.17"]
[Round "9"]
[White "Aditya, Mittal"]
[Black "Miroshnichenko, Pavel"]
[Result "1/2-1/2"]
[ECO "D22"]
[WhiteElo "2203"]
[BlackElo "2294"]
[Annotator "NA"]
[PlyCount "137"]
[EventDate "2017.??.??"]
[EventType "swiss"]
[EventCountry "POL"]
[SourceTitle "playchess.com"]
[Source "ChessBase"]
[SourceQuality "1"]
[TimeControl "40/5400+30:1800+30"]

1. d4 {[%emt 0:00:00]} d5 {[%emt 0:00:15]} 2. c4 {[%emt 0:00:00]} dxc4 {[%emt 0:00:05]} 3. Nf3 {[%emt 0:00:14]} Nf6 {[%emt 0:00:06]} 4. e3 {[%emt 0:00:05]} Bg4 {[%emt 0:00:04]} 5. Bxc4 {[%emt 0:01:46]} e6 {[%emt 0:00:05]} 6. O-O {[%emt 0:06:46]} a6 {[%emt 0:01:58]} 7. h3 {[%emt 0:02:36]} Bh5 {[%emt 0:00:31]} 8. Nbd2 {[%emt 0:01:52]} Nc6 {[%emt 0:01:38] D22: Queen's Gambit Accepted: 3 Nf3 a6 4 e3} (8... c5 9. dxc5 Bxc5 10. b3 O-O 11. Bb2 Nbd7 12. Be2 Qe7 13. Nc4 Rfd8 14. Nd4 Bxe2 15. Qxe2 Nb6 16. Na5 Rd5 {½-½ (54) L'Ami,E (2630)-Kunin,V (2568) Netherlands 2015}) 9. b3 {[%emt 0:02:14]} Bd6 {[%emt 0:03:04]} 10. Bb2 {[%emt 0:00:20]} Qe7 {[%emt 0:01:25]} 11. Be2 {[%emt 0:02:40]} Ba3 {[%emt 0:02:15]} 12. Bxa3 {[%emt 0:06:38]} Qxa3 13. Nc4 {[%emt 0:02:02]} Qe7 {[%emt 0:00:36]} 14. Nfe5 $146 {[%emt 0:01:43]} ({Predecessor:} 14. Qc2 O-O {½-½ (40) Donner,J-Gerusel,M Solingen 1968}) 14... Bxe2 {[%emt 0:03:00]} 15. Qxe2 {[%emt 0:00:32]} Nxe5 {[%emt 0:00:32]} 16. Nxe5 {[%emt 0:00:28]} O-O {[%emt 0:01:03]} 17. Rfc1 {[%emt 0:00:48]} h6 {[%emt 0:01:58]} 18. Qc2 {[%emt 0:06:53]} c6 {[%emt 0:01:27]} 19. Qc5 {[%emt 0:01:42]} Qd8 {[%emt 0:01:46]} 20. Nc4 {[%emt 0:05:56]} Nd5 {[%emt 0:03:18]} 21. Qd6 {[%emt 0:04:38]} Qg5 {[%emt 0:04:10]} 22. Kh2 {[%emt 0:06:22]} Rad8 {[%emt 0:02:36]} 23. Qg3 {[%emt 0:02:13]} Rfe8 {[%emt 0:01:55]} 24. Qxg5 {[%emt 0:02:13]} hxg5 {[%emt 0:00:03]} 25. Ne5 {[%emt 0:07:22]} f6 {[%emt 0:00:45]} 26. Nd3 {[%emt 0:00:12]} Kf7 {[%emt 0:03:38]} 27. Nc5 {[%emt 0:00:53]} Re7 {[%emt 0:00:14]} 28. g3 {[%emt 0:00:42]} Rc7 {[%emt 0:01:24]} 29. Kg2 {[%emt 0:01:29]} Ne7 {[%emt 0:01:25]} 30. Ne4 {[%emt 0:02:01]} Ng6 {[%emt 0:02:09]} 31. Rd1 {[%emt 0:00:52]} Rd5 {[%emt 0:01:28]} 32. Nc3 {[%emt 0:05:33]} Rdd7 {[%emt 0:00:56]} 33. Ne4 {[%emt 0:02:17]} Ke7 $11 {[%emt 0:01:13]} 34. Rac1 {[%emt 0:04:39]} Rd5 {[%emt 0:01:22]} 35. Rc5 {[%emt 0:02:45]} Rd8 {[%emt 0:02:23]} 36. Rc2 {[%emt 0:02:51]} Ne5 {[%emt 0:08:46]} 37. Rcd2 {[%emt 0:02:50]} Nd7 {[%emt 0:00:37]} 38. Rh1 {[%emt 0:06:23]} Nb6 {[%emt 0:05:00]} 39. Nc5 {[%emt 0:02:59]} a5 {[%emt 0:03:31]} 40. h4 {[%emt 0:00:00]} g4 {[%emt 0:01:36]} 41. h5 {[%emt 0:03:35]} Rh8 {[%emt 0:01:03]} 42. Rh4 {[%emt 0:02:03]} f5 {[%emt 0:02:52]} 43. e4 {[%emt 0:08:03]} Kf7 {[%emt 0:06:13]} 44. Re2 {[%emt 0:04:54]} Rh6 {[%emt 0:05:23]} 45. f3 {[%emt 0:02:22]} gxf3+ {[%emt 0:00:37]} 46. Kxf3 {[%emt 0:00:02]} Nd7 {[%emt 0:00:34]} 47. exf5 {[%emt 0:03:19]} exf5 {[%emt 0:01:21]} 48. Rf4 {[%emt 0:02:41]} Nf6 {[%emt 0:02:58]} 49. Ne6 {[%emt 0:03:45]} Rd7 {[%emt 0:01:08]} 50. Ng5+ {[%emt 0:00:20]} Kf8 {[%emt 0:03:55]} 51. Rxf5 {[%emt 0:00:36]} Rd5 {[%emt 0:02:06]} 52. Rxd5 {[%emt 0:02:19]} Nxd5 {[%emt 0:00:11]} 53. Ne6+ {[%emt 0:02:51]} Kg8 {[%emt 0:00:54]} 54. Nd8 {[%emt 0:01:01]} Rf6+ {[%emt 0:01:32]} 55. Kg2 {[%emt 0:01:04]} b5 {[%emt 0:01:02]} 56. Re6 {[%emt 0:03:22]} Rxe6 {[%emt 0:03:09]} 57. Nxe6 {[%emt 0:00:02]} Nc3 {[%emt 0:00:08]} 58. Nd8 {[%emt 0:00:26]} Nxa2 {[%emt 0:00:12]} 59. Nxc6 {[%emt 0:00:05]} a4 {[%emt 0:00:06]} 60. bxa4 {[%emt 0:01:11]} bxa4 {[%emt 0:00:02]} 61. Kf3 {[%emt 0:01:15]} a3 {[%emt 0:01:24]} 62. d5 {[%emt 0:00:37]} Kf8 {[%emt 0:04:35]} 63. d6 {[%emt 0:00:08]} Ke8 {[%emt 0:00:00]} 64. d7+ {[%emt 0:00:11]} Kxd7 {[%emt 0:00:02]} 65. Ne5+ {[%emt 0:00:05]} Ke6 {[%emt 0:00:04]} 66. Nc4 {[%emt 0:00:03]} Kf5 {[%emt 0:00:25]} 67. Nxa3 {[%emt 0:00:22]} Kg5 {[%emt 0:00:11]} 68. g4 {[%emt 0:00:03]} Nb4 {[%emt 0:00:59]} 69. Ke4 1/2-1/2

[Event "XVII MetLife Najdorf Open 2017"]
[Site "Warsaw"]
[Date "2017.07.17"]
[Round "9"]
[White "Szustakowski, Antoni"]
[Black "Mulet, Piotr"]
[Result "0-1"]
[ECO "D85"]
[WhiteElo "2171"]
[BlackElo "2307"]
[Annotator "NA"]
[PlyCount "106"]
[EventDate "2017.??.??"]
[EventType "swiss"]
[EventCountry "POL"]
[SourceTitle "playchess.com"]
[Source "ChessBase"]
[SourceQuality "1"]
[TimeControl "40/5400+30:1800+30"]

1. d4 {[%emt 0:00:00]} Nf6 {[%emt 0:00:11]} 2. c4 {[%emt 0:00:00]} g6 {[%emt 0:00:04]} 3. Nc3 {[%emt 0:00:00]} d5 {[%emt 0:00:06]} 4. cxd5 {[%emt 0:00:00]} Nxd5 {[%emt 0:00:04]} 5. e4 {[%emt 0:00:00]} Nxc3 {[%emt 0:00:04]} 6. bxc3 {[%emt 0:00:00]} Bg7 {[%emt 0:00:07]} 7. Nf3 {[%emt 0:00:03]} c5 {[%emt 0:00:09]} 8. Be3 {[%emt 0:00:08]} O-O {[%emt 0:01:34]} 9. Be2 {[%emt 0:00:08]} Qa5 {[%emt 0:01:23]} 10. O-O {[%emt 0:01:55]} Nd7 {[%emt 0:04:08]} 11. Qc2 {[%emt 0:09:00] D85: Exchange Grünfeld: Unusual White 7th moves and lines with 7 Nf3} (11. Qd3 Nb6 12. Nd2 Na4 13. Rac1 Rd8 14. Nb3 Qc7 15. Qc4 Bd7 16. Nxc5 Nxc5 17. dxc5 e5 18. Rb1 Bf8 {1-0 (69) Schekachikhin,M (2347)-Gajewski,G (2621) St Petersburg 2016}) 11... Qc7 $146 {[%emt 0:10:17]} ({Predecessor:} 11... a6 12. Nd2 Qc7 13. Rac1 b5 14. f4 Bb7 15. Bf3 Rac8 16. d5 Nb6 17. c4 Bd4 18. Qd3 Bxe3+ 19. Qxe3 {0-1 (77) Aliaga Fernandez,I (2141)-Bakalarz,G (2035) Mallorca 2004}) 12. d5 {[%emt 0:05:13]} Nb6 {[%emt 0:08:38]} 13. Rad1 {[%emt 0:03:50]} Bd7 {[%emt 0:00:43]} 14. Qd2 {[%emt 0:01:30]} Na4 {[%emt 0:08:35]} 15. Rc1 {[%emt 0:04:58]} c4 {[%emt 0:18:06]} 16. Bh6 {[%emt 0:12:13]} b5 {[%emt 0:00:26]} 17. Bxg7 {[%emt 0:09:09]} Kxg7 {[%emt 0:00:02]} 18. Qd4+ {[%emt 0:02:21]} f6 {[%emt 0:00:09]} 19. e5 {[%emt 0:02:05]} Qc5 {[%emt 0:01:53]} 20. Rfd1 {[%emt 0:11:05]} Qxd4 {[%emt 0:00:06]} 21. Rxd4 {[%emt 0:00:17]} Rfd8 {[%emt 0:08:21]} 22. g4 {[%emt 0:05:30]} Rac8 {[%emt 0:02:06]} 23. g5 {[%emt 0:02:32]} fxe5 {[%emt 0:00:12]} 24. Nxe5 {[%emt 0:00:18]} Be8 {[%emt 0:00:02]} 25. Bf3 $11 {[%emt 0:02:23]} (25. Bg4 $5 {[%cal Rg4c8]} Rc5 26. Be6 $11) 25... Rd6 {[%emt 0:08:01]} 26. h4 {[%emt 0:07:48]} Rc7 {[%emt 0:00:17]} 27. Bg2 {[%emt 0:02:40]} Nc5 {[%emt 0:09:19]} 28. f4 {[%emt 0:03:45]} Ra6 {[%emt 0:00:07]} 29. Rd2 {[%emt 0:02:04]} h5 {[%emt 0:01:42]} 30. Kf2 {[%emt 0:01:45]} Ra3 {[%emt 0:01:03]} 31. Ke2 {[%emt 0:01:18]} Na4 {[%emt 0:00:55]} 32. Rdc2 {[%emt 0:00:24]} Bd7 {[%emt 0:07:29]} 33. Be4 {[%emt 0:08:01]} Bf5 {[%emt 0:00:04]} 34. Bxf5 {[%emt 0:01:01]} gxf5 {[%emt 0:00:06]} 35. Nc6 {[%emt 0:01:50]} Rd7 {[%emt 0:01:20]} 36. Kf2 {[%emt 0:00:55]} Nc5 {[%emt 0:01:22]} 37. Kg2 {[%emt 0:01:16]} Nd3 {[%emt 0:00:49]} 38. Rf1 {[%emt 0:00:06]} Kf8 {[%emt 0:02:12]} 39. Nd4 {[%emt 0:01:25]} Rxd5 {[%emt 0:00:24]} 40. Ne2 {[%emt 0:00:00]} Kg7 {[%emt 0:00:58]} 41. Rb1 {[%emt 0:08:41]} a6 {[%emt 0:01:15]} 42. Rh1 {[%emt 0:01:49]} Kg6 {[%emt 0:00:11]} 43. Kf1 {[%emt 0:00:30]} Nc5 {[%emt 0:00:53]} 44. Rh3 {[%emt 0:01:37]} Rd3 {[%emt 0:00:23]} 45. Kg2 {[%emt 0:00:48]} Ne4 {[%emt 0:00:22]} 46. Rf3 {[%emt 0:00:13]} b4 {[%emt 0:04:35]} 47. Rf1 {[%emt 0:00:59]} Nxc3 {[%emt 0:01:32]} 48. Nxc3 {[%emt 0:00:31]} Raxc3 {[%emt 0:00:06]} 49. Rff2 {[%emt 0:00:29]} Rxc2 {[%emt 0:00:17]} 50. Rxc2 {[%emt 0:00:02]} c3 {[%emt 0:00:09]} 51. Kf2 {[%emt 0:00:14]} a5 {[%emt 0:01:55]} 52. Re2 {[%emt 0:00:17]} a4 {[%emt 0:01:01]} 53. Rxe7 {[%emt 0:00:16]} c2 {[%emt 0:00:16]} 0-1

[Event "XVII MetLife Najdorf Open 2017"]
[Site "Warsaw"]
[Date "2017.07.17"]
[Round "9"]
[White "Antolak, Julia"]
[Black "Kujawski, Adam"]
[Result "1/2-1/2"]
[ECO "C07"]
[WhiteElo "2144"]
[BlackElo "2300"]
[Annotator "NA"]
[PlyCount "74"]
[EventDate "2017.??.??"]
[EventType "swiss"]
[EventCountry "POL"]
[SourceTitle "playchess.com"]
[Source "ChessBase"]
[SourceQuality "1"]
[TimeControl "40/5400+30:1800+30"]

1. e4 e6 2. d4 d5 3. Nd2 c5 4. exd5 Qxd5 5. Ngf3 cxd4 6. Bc4 Qd6 7. O-O Nf6 8. Nb3 Nc6 9. Nbxd4 Nxd4 10. Nxd4 a6 11. Re1 Bd7 12. c3 Qc7 13. Qe2 O-O-O 14. Be3 h5 15. h3 Bc5 16. b4 Ng4 17. hxg4 hxg4 18. Qxg4 Qh2+ $18 19. Kf1 e5 20. Nf5 Bxe3 21. fxe3 Rh5 22. Bd3 Be6 23. Ne7+ Kc7 24. Bf5 Rd2 25. Re2 Rxf5+ 26. Nxf5 Qh1+ 27. Kf2 Rxe2+ 28. Qxe2 Qxa1 29. Nxg7 Qxa2 30. Nxe6+ Qxe6 31. Qd3 f5 32. c4 e4 33. Qd4 Qg6 34. c5 Kc6 35. Qc4 Qe8 36. Qa2 Kb5 37. Qd5 Qc6 1/2-1/2

[Event "XVII MetLife Najdorf Open 2017"]
[Site "Warsaw"]
[Date "2017.07.17"]
[Round "9"]
[White "Ghadiri, Radmehr"]
[Black "Kowalczyk, Rafal"]
[Result "0-1"]
[ECO "E34"]
[WhiteElo "2125"]
[BlackElo "2240"]
[Annotator "NA"]
[PlyCount "106"]
[EventDate "2017.??.??"]
[EventType "swiss"]
[EventCountry "POL"]
[SourceTitle "playchess.com"]
[Source "ChessBase"]
[SourceQuality "1"]
[TimeControl "40/5400+30:1800+30"]

1. d4 {[%emt 0:00:00]} Nf6 {[%emt 0:00:05]} 2. c4 {[%emt 0:00:00]} e6 {[%emt 0:00:08]} 3. Nc3 {[%emt 0:00:02]} Bb4 {[%emt 0:00:07]} 4. Qc2 {[%emt 0:00:05]} d5 {[%emt 0:00:08]} 5. cxd5 {[%emt 0:00:02]} Qxd5 {[%emt 0:00:19]} 6. Nf3 {[%emt 0:02:32]} c5 {[%emt 0:01:23]} 7. e3 {[%emt 0:02:22]} Nc6 {[%emt 0:06:33]} 8. Bd2 {[%emt 0:06:41]} Bxc3 {[%emt 0:07:28]} 9. Bxc3 {[%emt 0:00:39]} cxd4 {[%emt 0:09:47]} 10. Nxd4 {[%emt 0:05:57]} Nxd4 {[%emt 0:02:30]} 11. Bxd4 {[%emt 0:00:35]} Bd7 {[%emt 0:01:31]} 12. Qc4 {[%emt 0:38:35]} O-O {[%emt 0:20:35]} 13. Bxf6 {[%emt 0:05:01]} Qxc4 {[%emt 0:00:16]} 14. Bxc4 {[%emt 0:00:04]} gxf6 {[%emt 0:00:06]} 15. Ke2 {[%emt 0:01:16]} Rac8 {[%emt 0:00:50]} 16. Rac1 {[%emt 0:06:46]} Bc6 {[%emt 0:03:56]} 17. Bd3 {[%emt 0:05:33]} f5 {[%emt 0:00:20]} 18. Rhd1 {[%emt 0:00:49]} Kg7 {[%emt 0:00:49]} 19. f3 {[%emt 0:01:42]} Kf6 {[%emt 0:02:05]} 20. Rc3 {[%emt 0:01:09]} Rcd8 {[%emt 0:11:53]} 21. Bc2 {[%emt 0:04:29]} Rxd1 {[%emt 0:00:27]} 22. Bxd1 {[%emt 0:00:43]} Rg8 {[%emt 0:00:10]} 23. g3 {[%emt 0:01:07]} h5 {[%emt 0:00:33]} 24. Bc2 {[%emt 0:01:54]} h4 {[%emt 0:04:56]} 25. Kf2 {[%emt 0:00:12]} hxg3+ {[%emt 0:00:08]} 26. hxg3 {[%emt 0:00:04]} Rh8 {[%emt 0:00:37]} 27. Kg2 {[%emt 0:00:12]} e5 {[%emt 0:01:15]} 28. e4 {[%emt 0:06:35]} fxe4 {[%emt 0:09:12]} 29. Bxe4 {[%emt 0:00:05]} Bxe4 {[%emt 0:00:50]} 30. fxe4 {[%emt 0:00:03]} Rd8 {[%emt 0:00:11]} 31. Kf3 {[%emt 0:01:35]} Rd2 {[%emt 0:00:27]} 32. Ra3 {[%emt 0:02:08]} a6 {[%emt 0:05:41]} 33. Rb3 {[%emt 0:00:19]} b5 {[%emt 0:00:07]} 34. Ra3 {[%emt 0:04:25]} Rd6 {[%emt 0:00:21]} 35. Rc3 {[%emt 0:00:16]} Kg5 {[%emt 0:00:24]} 36. a3 {[%emt 0:01:06]} Rd2 {[%emt 0:05:07]} 37. Rc6 {[%emt 0:01:28]} Rxb2 {[%emt 0:00:20]} 38. Rxa6 {[%emt 0:00:06]} Rb3+ {[%emt 0:00:04]} 39. Kf2 {[%emt 0:00:12]} Rc3 {[%emt 0:07:04]} 40. Ra7 {[%emt 0:00:00]} f5 {[%emt 0:00:22]} 41. exf5 {[%emt 0:02:17]} Kxf5 {[%emt 0:00:06]} 42. Ra5 {[%emt 0:04:35]} Rb3 {[%emt 0:01:24]} 43. a4 {[%emt 0:03:20]} b4 {[%emt 0:00:16]} 44. g4+ {[%emt 0:02:50]} Kf4 {[%emt 0:00:48]} 45. g5 {[%emt 0:00:24]} Rb2+ {[%emt 0:13:01]} 46. Ke1 {[%emt 0:01:29]} e4 {[%emt 0:00:36]} 47. g6 {[%emt 0:01:00]} Rg2 {[%emt 0:04:56]} 48. Rb5 {[%emt 0:00:54]} Kf3 {[%emt 0:01:54]} 49. Rxb4 {[%emt 0:13:39]} e3 {[%emt 0:01:17]} 50. Kd1 {[%emt 0:00:01]} e2+ {[%emt 0:01:27]} 51. Kd2 {[%emt 0:00:25]} Rg1 {[%emt 0:00:19]} 52. Rb3+ {[%emt 0:00:38]} Kf2 {[%emt 0:00:06]} 53. Re3 {[%emt 0:00:57]} Rd1+ {[%emt 0:00:25]} 0-1